[Event "Fast Chess"]
[Site "ChessKid.com"]
[Date "2020.04.20"]
[Round "2"]
[White "Dai, Lana"]
[Black "Georgiev, Maximilian"]
[Result "1/2-1/2"]
[ECO "C55"]
[WhiteElo "1260"]
[BlackElo "1355"]
[PlyCount "74"]
[EventDate "2020.??.??"]
[TimeControl "600"]
[WhiteClock "0:06:38"]
[BlackClock "0:04:37"]

1. e4 {[%emt 0:00:02]} e5 {[%emt 0:00:02]} 2. Nf3 {[%emt 0:00:03]} Nc6 {
[%emt 0:00:02]} 3. Nc3 {[%emt 0:00:03]} Nf6 {[%emt 0:00:03]} 4. h3 {[%emt 0:00:
01]} Be7 {[%emt 0:00:04]} 5. a3 {[%emt 0:00:02]} O-O {[%emt 0:00:02]} 6. Bc4 {
[%emt 0:00:02]} h6 {[%emt 0:00:04]} 7. d3 {[%emt 0:00:02]} a6 {[%emt 0:00:02]}
8. O-O {[%emt 0:00:02]} b5 {[%emt 0:00:02]} 9. Bd5 {[%emt 0:00:06]} Nxd5 {
[%emt 0:00:03]} 10. Nxd5 {[%emt 0:00:02]} Bf6 {[%emt 0:00:06]} 11. Nxf6+ {
[%emt 0:00:08]} Qxf6 {[%emt 0:00:02]} 12. c4 {[%emt 0:00:14]} bxc4 {[%emt 0:00:
03]} 13. dxc4 {[%emt 0:00:06]} Qg6 {[%emt 0:00:06]} 14. Nh4 {[%emt 0:00:07]}
Qxe4 {[%emt 0:00:04]} 15. c5 $4 {[%emt 0:00:13]} d5 $4 {[%emt 0:00:15]} 16. Nf3
{[%emt 0:00:00]} Qg6 {[%emt 0:00:08]} 17. Nh4 {[%emt 0:00:10]} Qe6 {[%emt 0:00:
07]} 18. Re1 {[%emt 0:00:14]} Bb7 {[%emt 0:00:11]} 19. Bf4 {[%emt 0:00:05]} Ne7
{[%emt 0:00:07]} 20. Rxe5 {[%emt 0:00:06]} Qd7 {[%emt 0:00:06]} 21. Bg3 {
[%emt 0:00:47]} Bc6 {[%emt 0:00:13]} 22. Rxe7 {[%emt 0:00:16]} Qxe7 {[%emt 0:
00:07]} 23. Nf5 {[%emt 0:00:26]} Qxc5 {[%emt 0:00:05]} 24. Bxc7 {[%emt 0:00:15]
} Rac8 {[%emt 0:00:08]} 25. Bd6 {[%emt 0:00:05]} Qa7 {[%emt 0:00:07]} 26. Ne7+
{[%emt 0:00:33]} Kh7 {[%emt 0:00:06]} 27. Nxc8 {[%emt 0:00:10]} Rxc8 {[%emt 0:
00:01]} 28. Qd3+ {[%emt 0:00:05]} Kg8 {[%emt 0:00:11]} 29. Rc1 {[%emt 0:00:20]}
Bd7 {[%emt 0:00:08]} 30. Rxc8+ {[%emt 0:00:04]} Bxc8 {[%emt 0:00:01]} 31. Qe2
$2 {[%emt 0:00:10]} Qb6 $2 {[%emt 0:00:09]} 32. Qe8+ {[%emt 0:00:07]} Kh7 {
[%emt 0:00:04]} 33. Qxc8 {[%emt 0:00:07]} Qxd6 {[%emt 0:00:02]} 34. Qf5+ {
[%emt 0:00:04]} Kh8 {[%emt 0:00:18]} 35. Qc8+ {[%emt 0:00:03]} Kh7 {[%emt 0:00:
02]} 36. Qf5+ {[%emt 0:00:02]} Kg8 {[%emt 0:00:02]} 37. Qc8+ {[%emt 0:00:02]}
Kh7 {[%emt 0:00:02] Game drawn by repetition} 1/2-1/2

[Event "Fast Chess"]
[Site "ChessKid.com"]
[Date "2020.04.20"]
[Round "2"]
[White "Li, Tobias"]
[Black "Sasse, Gabriel"]
[Result "1-0"]
[ECO "C50"]
[WhiteElo "1357"]
[BlackElo "1242"]
[Annotator "Pläne schmieden"]
[PlyCount "67"]
[EventDate "2020.??.??"]
[TimeControl "600"]
[WhiteClock "0:07:19"]
[BlackClock "0:06:33"]

1. e4 {[%emt 0:00:00]} e5 {[%emt 0:00:01]} 2. Nf3 {[%emt 0:00:01]} Nc6 {
[%emt 0:00:00]} 3. Nc3 {[%emt 0:00:02]} Bc5 {[%emt 0:00:01]} 4. Bc4 {[%emt 0:
00:01]} h6 {[%emt 0:00:02]} 5. h3 {[%emt 0:00:02]} Nf6 {[%emt 0:00:00]} 6. O-O
{[%emt 0:00:01]} Bb6 {[%emt 0:00:10]} 7. d3 {[%emt 0:00:10]} Bd4 {[%emt 0:00:
06]} 8. Bd2 {[%emt 0:00:05]} Bxc3 {[%emt 0:00:02]} 9. Bxc3 {[%emt 0:00:02]} O-O
{[%emt 0:00:03]} 10. Bb3 {[%emt 0:00:04]} Qe7 {[%emt 0:00:05]} 11. a3 {[%emt 0:
00:05]} a6 {[%emt 0:00:02]} 12. Re1 {[%emt 0:00:12]} d6 {[%emt 0:00:04]} 13.
Qd2 {[%emt 0:00:15]} b5 {[%emt 0:00:04]} 14. Ba2 {[%emt 0:00:06]} a5 {[%emt 0:
00:07]} 15. b4 {[%emt 0:00:06]} axb4 {[%emt 0:00:02]} 16. axb4 {[%emt 0:00:01]}
Bb7 {[%emt 0:00:06]} 17. Bb3 {[%emt 0:00:13]} Nd4 {[%emt 0:00:03]} 18. Rxa8 {
[%emt 0:00:07]} Bxa8 {[%emt 0:00:02]} 19. Ba2 $2 {[%emt 0:00:03]} Nxf3+ {
[%emt 0:00:03]} 20. gxf3 {[%emt 0:00:03]} Nh5 {[%emt 0:00:05]} 21. Ra1 {
[%emt 0:00:16]} Qh4 {[%emt 0:00:09]} 22. Kf1 {[%emt 0:00:09]} Qxh3+ {[%emt 0:
00:04]} 23. Ke2 {[%emt 0:00:06]} Nf4+ {[%emt 0:00:03]} 24. Ke3 {[%emt 0:00:05]
Schwarz steht besser. Aber es braucht einen Plan, um zu gewinnen} Ng2+ {
[%emt 0:00:03]} 25. Ke2 {[%emt 0:00:04]} c6 {[%emt 0:00:12]} 26. d4 {[%emt 0:
00:13]} exd4 {[%emt 0:00:02]} 27. Qxd4 {[%emt 0:00:04]} Nf4+ {[%emt 0:00:11]}
28. Ke3 {[%emt 0:00:03]} Ne6 {[%emt 0:00:16]} 29. Qxd6 {[%emt 0:00:08]} Qh5 {
[%emt 0:00:18]} 30. Bxe6 {[%emt 0:00:10]} Qg5+ {[%emt 0:00:06]} 31. Ke2 {
[%emt 0:00:05]} fxe6 {[%emt 0:00:03]} 32. Qxe6+ {[%emt 0:00:03]} Kh8 {[%emt 0:
00:02]} 33. Qd7 {[%emt 0:00:16]} Qh5 $4 {[%emt 0:00:04]} 34. Qxg7# {[%emt 0:00:
06] OnlyHungryKiwi won by checkmate} 1-0

[Event "Fast Chess"]
[Site "ChessKid.com"]
[Date "2020.04.20"]
[Round "2"]
[White "Li, Patrick"]
[Black "Halimi, Dorian"]
[Result "0-1"]
[ECO "C00"]
[WhiteElo "1059"]
[BlackElo "1133"]
[Annotator "Grundlinienmatt"]
[PlyCount "36"]
[EventDate "2020.??.??"]
[TimeControl "600"]
[WhiteClock "0:08:37"]
[BlackClock "0:08:11"]

1. e4 {[%emt 0:00:00]} e6 {[%emt 0:00:02]} 2. Nf3 {[%emt 0:00:01]} Nf6 {
[%emt 0:00:08]} 3. Nc3 {[%emt 0:00:06]} Nc6 {[%emt 0:00:03]} 4. Bb5 {[%emt 0:
00:04]} Bb4 {[%emt 0:00:02]} 5. Bxc6 {[%emt 0:00:06]} dxc6 {[%emt 0:00:05]} 6.
Na4 {[%emt 0:00:11]} b5 {[%emt 0:00:02]} 7. Nc3 {[%emt 0:00:08]} Bxc3 {[%emt 0:
00:02]} 8. dxc3 {[%emt 0:00:03]} Bd7 {[%emt 0:00:06]} 9. Ne5 {[%emt 0:00:05]}
O-O {[%emt 0:00:06]} 10. Nxd7 {[%emt 0:00:06]} Nxd7 {[%emt 0:00:03]} 11. O-O {
[%emt 0:00:02]} Rb8 {[%emt 0:00:06]} 12. Qg4 {[%emt 0:00:17]} Ne5 {[%emt 0:00:
09]} 13. Qg3 {[%emt 0:00:07]} Qd7 {[%emt 0:00:05]} 14. Bh6 {[%emt 0:00:08]} g6
{[%emt 0:00:08]} 15. Bxf8 {[%emt 0:00:02]} Rxf8 {[%emt 0:00:03]} 16. Qxe5 {
[%emt 0:00:06]} Rd8 {[%emt 0:00:07]} 17. Rfd1 $4 {[%emt 0:00:07]} Qxd1+ {
[%emt 0:00:05]} 18. Rxd1 {[%emt 0:00:10]} Rxd1# {[%emt 0:00:01]
FullMagentaEclipse won by checkmate} 0-1

[Event "Fast Chess"]
[Site "ChessKid.com"]
[Date "2020.04.20"]
[Round "3"]
[White "Georgiev, Maximilian"]
[Black "Li, Tobias"]
[Result "1-0"]
[ECO "C50"]
[WhiteElo "1363"]
[BlackElo "1349"]
[PlyCount "33"]
[EventDate "2020.??.??"]
[TimeControl "600"]
[WhiteClock "0:08:20"]
[BlackClock "0:09:06"]

1. e4 {[%emt 0:00:00]} e5 {[%emt 0:00:04]} 2. Nf3 {[%emt 0:00:01]} Nc6 {
[%emt 0:00:03]} 3. Bc4 {[%emt 0:00:02]} h6 {[%emt 0:00:03]} 4. O-O {[%emt 0:00:
02]} Nf6 {[%emt 0:00:07]} 5. Nc3 {[%emt 0:00:05]} Bc5 {[%emt 0:00:01]} 6. h3 {
[%emt 0:00:02]} O-O {[%emt 0:00:02]} 7. a3 {[%emt 0:00:02]} Re8 {[%emt 0:00:10]
} 8. d3 {[%emt 0:00:02]} d6 {[%emt 0:00:03]} 9. b4 {[%emt 0:00:06]} b5 {
[%emt 0:00:09]} 10. bxc5 {[%emt 0:00:02]} bxc4 {[%emt 0:00:02]} 11. dxc4 {
[%emt 0:00:01]} dxc5 {[%emt 0:00:04]} 12. Qxd8 {[%emt 0:00:02]} Rxd8 {[%emt 0:
00:05]} 13. a4 {[%emt 0:00:04]} Nb4 {[%emt 0:00:06]} 14. Ne1 {[%emt 0:00:09]}
Rd1 {[%emt 0:00:07]} 15. Bb2 {[%emt 0:00:09]} Rxa1 {[%emt 0:00:09]} 16. Bxa1 {
[%emt 0:00:01]} Rb8 {[%emt 0:00:25]} 17. Nd3 {[%emt 0:00:04] TallSnazzyBall
won - game abandoned} 1-0

[Event "Fast Chess"]
[Site "ChessKid.com"]
[Date "2020.04.20"]
[Round "3"]
[White "Halimi, Dorian"]
[Black "Dai, Lana"]
[Result "1/2-1/2"]
[ECO "A00"]
[WhiteElo "1136"]
[BlackElo "1257"]
[Annotator "Dauerschach"]
[PlyCount "63"]
[EventDate "2020.??.??"]
[TimeControl "600"]
[WhiteClock "0:03:54"]
[BlackClock "0:07:30"]

1. e3 {[%emt 0:00:00]} e5 {[%emt 0:00:04]} 2. Qh5 {[%emt 0:00:02]} Nc6 {
[%emt 0:00:05]} 3. Bc4 {[%emt 0:00:01]} g6 {[%emt 0:00:08]} 4. Qf3 {[%emt 0:00:
03]} Nf6 {[%emt 0:00:02]} 5. Nh3 {[%emt 0:00:02]} e4 {[%emt 0:00:04]} 6. Qf4 {
[%emt 0:00:04]} Bd6 {[%emt 0:00:10]} 7. Qg5 {[%emt 0:00:06]} h6 {[%emt 0:00:09]
} 8. Qh4 {[%emt 0:00:07]} Be5 {[%emt 0:00:32]} 9. Ng5 {[%emt 0:00:04]} d6 {
[%emt 0:00:24]} 10. Nxf7 {[%emt 0:00:02]} g5 {[%emt 0:00:33]} 11. Nxd8 {
[%emt 0:00:19]} gxh4 {[%emt 0:00:05]} 12. Nf7 {[%emt 0:00:02]} Rh7 {[%emt 0:00:
10]} 13. O-O {[%emt 0:00:03]} d5 {[%emt 0:00:10]} 14. Nxe5 {[%emt 0:00:06]}
Nxe5 {[%emt 0:00:11]} 15. Bb3 {[%emt 0:00:03]} Bg4 {[%emt 0:00:05]} 16. d4 {
[%emt 0:00:02]} Nc6 {[%emt 0:00:08]} 17. Nc3 {[%emt 0:00:04]} O-O-O {[%emt 0:
00:03]} 18. f4 {[%emt 0:00:07]} h3 {[%emt 0:00:06]} 19. g3 {[%emt 0:00:05]} Nh5
{[%emt 0:00:13]} 20. Bd2 {[%emt 0:00:07]} Bf3 {[%emt 0:00:19]} 21. a4 {[%emt 0:
00:08]} Nxg3 {[%emt 0:00:06]} 22. hxg3 {[%emt 0:00:04]} h2+ {[%emt 0:00:10]}
23. Kxh2 {[%emt 0:00:05]} Ne7 {[%emt 0:00:15]} 24. a5 {[%emt 0:00:04]} Nf5 {
[%emt 0:00:02]} 25. Nxd5 {[%emt 0:00:06]} Rg7 {[%emt 0:00:43]} 26. a6 {[%emt 0:
00:05]} bxa6 {[%emt 0:00:13]} 27. Rxa6 {[%emt 0:00:02]} Rxg3 {[%emt 0:00:14]}
28. Rf6 {[%emt 0:00:13]} Rg2+ {[%emt 0:00:03]} 29. Kh3 {[%emt 0:00:02]} Rg3+ {
[%emt 0:00:11]} 30. Kh2 {[%emt 0:00:03]} Rg2+ {[%emt 0:00:05]} 31. Kh3 {
[%emt 0:00:08]} Rg3+ {[%emt 0:00:24]} 32. Kh2 {[%emt 0:00:02] Game drawn by
repetition} 1/2-1/2

[Event "Fast Chess"]
[Site "ChessKid.com"]
[Date "2020.04.20"]
[Round "3"]
[White "Sasse, Gabriel"]
[Black "Li, Patrick"]
[Result "1-0"]
[ECO "C55"]
[WhiteElo "1246"]
[BlackElo "1055"]
[PlyCount "61"]
[EventDate "2020.??.??"]
[TimeControl "600"]
[WhiteClock "0:05:34"]
[BlackClock "0:08:28"]

1. e4 {[%emt 0:00:00]} e5 {[%emt 0:00:03]} 2. Nf3 {[%emt 0:00:00]} Nc6 {
[%emt 0:00:03]} 3. Bc4 {[%emt 0:00:01]} Bc5 {[%emt 0:00:04]} 4. Nc3 {[%emt 0:
00:01]} Nf6 {[%emt 0:00:01]} 5. Bb3 {[%emt 0:00:06]} O-O {[%emt 0:00:01]} 6.
Nxe5 {[%emt 0:00:01]} Nxe5 {[%emt 0:00:04]} 7. d4 {[%emt 0:00:02]} Bxd4 {
[%emt 0:00:05]} 8. Qxd4 {[%emt 0:00:03]} Nc6 {[%emt 0:00:00]} 9. Qd1 {[%emt 0:
00:02]} Re8 {[%emt 0:00:04]} 10. O-O {[%emt 0:00:04]} Nxe4 {[%emt 0:00:03]} 11.
Nxe4 {[%emt 0:00:02]} Rxe4 {[%emt 0:00:02]} 12. Qh5 {[%emt 0:00:02]} Qe7 {
[%emt 0:00:20]} 13. c3 {[%emt 0:00:02]} Re1 {[%emt 0:00:07]} 14. h3 {[%emt 0:
00:06]} Rxf1+ {[%emt 0:00:07]} 15. Kxf1 {[%emt 0:00:01]} d6 {[%emt 0:00:08]}
16. Bc2 {[%emt 0:00:01]} h6 {[%emt 0:00:17]} 17. Qf3 {[%emt 0:00:05]} Qf6 {
[%emt 0:00:25]} 18. Qd3 {[%emt 0:00:04]} Kf8 {[%emt 0:00:12]} 19. Qh7 {[%emt 0:
00:09]} Be6 {[%emt 0:00:15]} 20. Qh8+ {[%emt 0:00:03]} Ke7 {[%emt 0:00:04]} 21.
Qxa8 {[%emt 0:00:03]} Ne5 {[%emt 0:00:24]} 22. Qxb7 {[%emt 0:00:03]} Bd7 {
[%emt 0:00:21]} 23. Qe4 {[%emt 0:00:06]} Bf5 {[%emt 0:00:40]} 24. Qe2 {[%emt 0:
00:05]} Bxc2 {[%emt 0:00:08]} 25. Qxc2 {[%emt 0:00:02]} g5 {[%emt 0:00:08]} 26.
Bd2 {[%emt 0:00:05]} Nc4 {[%emt 0:00:04]} 27. Qe4+ {[%emt 0:00:05]} Kd7 {
[%emt 0:00:11]} 28. Qxc4 {[%emt 0:00:02]} Qxf2+ {[%emt 0:00:04]} 29. Kxf2 {
[%emt 0:00:03]} c5 {[%emt 0:00:01]} 30. Qa6 {[%emt 0:00:02]} d5 {[%emt 0:00:00]
} 31. Qxa7+ {[%emt 0:00:01] LimeFarActor won by resignation} 1-0

[Event "Fast Chess"]
[Site "ChessKid.com"]
[Date "2020.04.21"]
[Round "1"]
[White "Georgiev, Maximilian"]
[Black "Sasse, Gabriel"]
[Result "1-0"]
[ECO "C50"]
[WhiteElo "1379"]
[BlackElo "1245"]
[Annotator "einzügiger Einsteller"]
[PlyCount "45"]
[EventDate "2020.??.??"]
[TimeControl "300+50"]
[WhiteClock "0:05:36"]
[BlackClock "0:05:36"]

1. e4 {[%emt 0:00:45]} e5 {[%emt 0:00:46]} 2. Nf3 {[%emt 0:00:46]} Nc6 {
[%emt 0:00:46]} 3. Bc4 {[%emt 0:00:46]} Bc5 {[%emt 0:00:46]} 4. O-O {[%emt 0:
00:47]} h6 {[%emt 0:00:46]} 5. Nc3 {[%emt 0:00:47]} Nf6 {[%emt 0:00:46]} 6. d3
{[%emt 0:00:47]} O-O {[%emt 0:00:46]} 7. Be3 {[%emt 0:00:50]} d6 {[%emt 0:00:
46]} 8. Bxc5 {[%emt 0:00:47]} dxc5 {[%emt 0:00:46]} 9. h3 {[%emt 0:00:47]} Nd4
{[%emt 0:00:48]} 10. Nxe5 {[%emt 0:00:49]} Qe8 {[%emt 0:00:52]} 11. Nf3 {
[%emt 0:00:48]} Nxf3+ {[%emt 0:00:46]} 12. Qxf3 {[%emt 0:00:47]} b6 {[%emt 0:
00:51]} 13. Nd5 {[%emt 0:00:52]} Nxd5 {[%emt 0:00:54]} 14. Bxd5 {[%emt 0:00:46]
} Rb8 {[%emt 0:00:46]} 15. Bb3 {[%emt 0:00:49]} Bb7 {[%emt 0:00:48]} 16. a4 {
[%emt 0:00:50]} Kh8 {[%emt 0:00:54]} 17. Rfe1 {[%emt 0:00:48]} Qd8 {[%emt 0:00:
53]} 18. a5 {[%emt 0:00:53]} bxa5 {[%emt 0:00:48]} 19. Rxa5 {[%emt 0:00:46]} f5
{[%emt 0:00:47]} 20. Rxc5 {[%emt 0:00:54]} fxe4 {[%emt 0:00:51]} 21. Qd1 {
[%emt 0:00:51]} exd3 {[%emt 0:00:47]} 22. Qxd3 {[%emt 0:00:49]} Qe7 {[%emt 0:
00:53]} 23. Rxe7 {[%emt 0:00:50] TallSnazzyBall won by resignation} 1-0

[Event "Fast Chess"]
[Site "ChessKid.com"]
[Date "2020.04.21"]
[Round "1"]
[White "Gross, Lukas"]
[Black "Horvath, Alexander"]
[Result "1-0"]
[ECO "A00"]
[WhiteElo "1193"]
[BlackElo "1324"]
[Annotator "Dame in der Eröffnung"]
[PlyCount "47"]
[EventDate "2020.??.??"]
[TimeControl "300+50"]
[WhiteClock "0:04:30"]
[BlackClock "0:04:44"]

1. g3 {[%emt 0:00:48]} e5 {[%emt 0:00:49]} 2. Bg2 {[%emt 0:00:48]} Bc5 {
[%emt 0:00:48]} 3. Nh3 {[%emt 0:00:47]} Qf6 $2 {[%emt 0:00:48]} 4. d3 {[%emt 0:
00:49]} Qc6 $4 {[%emt 0:00:50]} 5. Bxc6 {[%emt 0:00:49]} dxc6 {[%emt 0:00:47]}
6. O-O {[%emt 0:00:48]} Bxh3 {[%emt 0:00:48]} 7. Re1 {[%emt 0:00:48]} Nf6 {
[%emt 0:00:48]} 8. Be3 {[%emt 0:00:49]} Bxe3 {[%emt 0:00:47]} 9. fxe3 {[%emt 0:
00:47]} O-O {[%emt 0:00:47]} 10. d4 {[%emt 0:00:49]} Rd8 {[%emt 0:00:50]} 11.
Na3 {[%emt 0:01:03]} Na6 {[%emt 0:01:06]} 12. Nc4 {[%emt 0:00:50]} exd4 {
[%emt 0:00:49]} 13. exd4 {[%emt 0:00:47]} c5 {[%emt 0:00:49]} 14. e3 {[%emt 0:
00:50]} cxd4 {[%emt 0:00:47]} 15. exd4 {[%emt 0:00:48]} Bg4 {[%emt 0:00:49]}
16. Qd2 {[%emt 0:00:52]} g6 {[%emt 0:00:58]} 17. Re7 {[%emt 0:01:02]} Nc5 {
[%emt 0:00:54]} 18. Qc3 {[%emt 0:00:49]} Nce4 {[%emt 0:00:50]} 19. Rxe4 {
[%emt 0:00:57]} Nxe4 {[%emt 0:00:48]} 20. Qd3 {[%emt 0:00:49]} Nc5 {[%emt 0:01:
02]} 21. Qd2 {[%emt 0:00:52]} Bf5 {[%emt 0:00:58]} 22. c3 {[%emt 0:00:47]} Ne4
{[%emt 0:00:52]} 23. Qh6 {[%emt 0:00:51]} b5 {[%emt 0:00:56]} 24. Na5 {[%emt 0:
00:59] RosyPopularArm won - game abandoned} 1-0

[Event "Fast Chess"]
[Site "ChessKid.com"]
[Date "2020.04.21"]
[Round "1"]
[White "Li, Tobias"]
[Black "Li, Patrick"]
[Result "0-1"]
[ECO "C55"]
[WhiteElo "1326"]
[BlackElo "1097"]
[Annotator "einzügiger Einsteller"]
[PlyCount "48"]
[EventDate "2020.??.??"]
[TimeControl "300+50"]
[WhiteClock "0:04:54"]
[BlackClock "0:05:06"]

1. e4 {[%emt 0:00:49]} e5 {[%emt 0:00:47]} 2. Nf3 {[%emt 0:00:47]} Nc6 {
[%emt 0:00:47]} 3. Nc3 {[%emt 0:00:47]} Nf6 {[%emt 0:00:48]} 4. Bc4 {[%emt 0:
00:46]} Bc5 {[%emt 0:00:49]} 5. Ng5 {[%emt 0:00:50]} O-O {[%emt 0:00:45]} 6.
Nxf7 {[%emt 0:00:47]} Rxf7 {[%emt 0:00:47]} 7. Bxf7+ {[%emt 0:00:47]} Kxf7 {
[%emt 0:00:46]} 8. Qh5+ $4 {[%emt 0:00:48]} Nxh5 {[%emt 0:00:49]} 9. d4 {
[%emt 0:00:52]} Bxd4 {[%emt 0:00:55]} 10. Bh6 {[%emt 0:00:47]} Bxc3+ {[%emt 0:
01:29]} 11. bxc3 {[%emt 0:00:52]} gxh6 {[%emt 0:00:51]} 12. O-O {[%emt 0:00:52]
} Nf4 {[%emt 0:00:48]} 13. h3 {[%emt 0:00:53]} Ne2+ {[%emt 0:00:48]} 14. Kh2 {
[%emt 0:00:49]} Nxc3 {[%emt 0:00:45]} 15. Rae1 {[%emt 0:00:50]} d6 {[%emt 0:00:
51]} 16. Re3 {[%emt 0:00:47]} Qg5 {[%emt 0:00:56]} 17. Rg3 {[%emt 0:00:50]} Qf4
{[%emt 0:00:50]} 18. Re1 {[%emt 0:00:54]} Nd4 {[%emt 0:00:48]} 19. Ree3 {
[%emt 0:00:47]} Nde2 {[%emt 0:00:46]} 20. Rd3 {[%emt 0:00:51]} Nxg3 {[%emt 0:
00:46]} 21. Rxg3 {[%emt 0:00:52]} Ne2 {[%emt 0:00:46]} 22. f3 {[%emt 0:00:55]}
Qxg3+ {[%emt 0:00:50]} 23. Kh1 {[%emt 0:00:50]} Nf4 {[%emt 0:00:53]} 24. a4 {
[%emt 0:00:53]} Qxg2# {[%emt 0:00:47] WideClassyQuiz won by checkmate} 0-1

[Event "Fast Chess"]
[Site "ChessKid.com"]
[Date "2020.04.21"]
[Round "2"]
[White "Li, Patrick"]
[Black "Georgiev, Maximilian"]
[Result "0-1"]
[ECO "C55"]
[WhiteElo "1094"]
[BlackElo "1382"]
[Annotator "Röntgenangriff"]
[PlyCount "74"]
[EventDate "2020.??.??"]
[TimeControl "300+50"]
[WhiteClock "0:05:09"]
[BlackClock "0:04:19"]

1. e4 {[%emt 0:00:48]} e5 {[%emt 0:00:46]} 2. Nf3 {[%emt 0:00:45]} Nc6 {
[%emt 0:00:46]} 3. Nc3 {[%emt 0:00:48]} Nf6 {[%emt 0:00:47]} 4. Bc4 {[%emt 0:
00:47]} h6 {[%emt 0:00:48]} 5. O-O {[%emt 0:00:47]} Nxe4 {[%emt 0:00:50]} 6.
Nxe4 {[%emt 0:00:48]} d5 {[%emt 0:00:47]} 7. Bd3 {[%emt 0:00:50]} dxe4 {
[%emt 0:00:47]} 8. Bxe4 {[%emt 0:00:47]} Be7 {[%emt 0:00:47]} 9. d4 {[%emt 0:
00:50]} exd4 {[%emt 0:00:48]} 10. h3 {[%emt 0:00:51]} O-O {[%emt 0:00:48]} 11.
Qd3 {[%emt 0:00:53]} Nb4 {[%emt 0:00:54]} 12. Qb3 {[%emt 0:00:52]} a6 {[%emt 0:
00:52]} 13. a3 {[%emt 0:00:52]} Nc6 {[%emt 0:00:48]} 14. Qd3 {[%emt 0:00:49]}
Qd6 {[%emt 0:00:52]} 15. Bh7+ {[%emt 0:00:50]} Kh8 {[%emt 0:00:48]} 16. Be4 {
[%emt 0:00:51]} Ne5 {[%emt 0:00:49]} 17. Nxe5 {[%emt 0:00:49]} Qxe5 {[%emt 0:
00:46]} 18. Qc4 $4 {[%emt 0:00:55]} Be6 $2 {[%emt 0:00:52]} 19. Qd3 {[%emt 0:
00:50]} Qc5 {[%emt 0:00:50]} 20. Bxb7 {[%emt 0:00:52]} Rab8 {[%emt 0:00:48]}
21. Be4 {[%emt 0:00:47]} Bc4 {[%emt 0:00:48]} 22. Qf3 {[%emt 0:00:53]} Bxf1 {
[%emt 0:00:49]} 23. Kxf1 {[%emt 0:00:47]} a5 {[%emt 0:00:56]} 24. b4 {[%emt 0:
01:11]} axb4 {[%emt 0:00:50]} 25. axb4 {[%emt 0:00:48]} Qxb4 {[%emt 0:00:47]}
26. Qf5 {[%emt 0:00:54]} g6 {[%emt 0:00:50]} 27. Qd7 {[%emt 0:00:50]} Bf6 {
[%emt 0:00:58]} 28. Ba3 {[%emt 0:00:50]} Qa5 {[%emt 0:00:56]} 29. Bxf8 {
[%emt 0:01:06]} Qxa1+ {[%emt 0:00:48]} 30. Ke2 {[%emt 0:00:49]} Rxf8 {[%emt 0:
00:47]} 31. Qxc7 {[%emt 0:00:47]} Qa6+ {[%emt 0:00:54]} 32. Kd2 {[%emt 0:00:49]
} Bg5+ {[%emt 0:00:57]} 33. Ke1 {[%emt 0:00:50]} Qa1+ {[%emt 0:00:54]} 34. Ke2
{[%emt 0:00:50]} Qc1 {[%emt 0:00:52]} 35. Qe7 {[%emt 0:01:01]} Qd2+ {[%emt 0:
00:48]} 36. Kf1 {[%emt 0:00:55]} Bxe7 {[%emt 0:00:47]} 37. Kg1 {[%emt 0:00:50]}
Bd6 {[%emt 0:00:48] TallSnazzyBall won by resignation} 0-1

[Event "Fast Chess"]
[Site "ChessKid.com"]
[Date "2020.04.21"]
[Round "2"]
[White "Gross, Lukas"]
[Black "Li, Tobias"]
[Result "0-1"]
[ECO "A00"]
[WhiteElo "1188"]
[BlackElo "1331"]
[Annotator "Abzug"]
[PlyCount "34"]
[EventDate "2020.??.??"]
[TimeControl "300+50"]
[WhiteClock "0:04:02"]
[BlackClock "0:04:45"]

1. g3 {[%emt 0:00:45]} e5 {[%emt 0:00:48]} 2. Bg2 {[%emt 0:00:47]} Nc6 {
[%emt 0:00:47]} 3. Nh3 {[%emt 0:00:47]} Nf6 {[%emt 0:00:47]} 4. O-O {[%emt 0:
00:47]} Bc5 {[%emt 0:00:48]} 5. e3 {[%emt 0:00:47]} d6 {[%emt 0:00:47]} 6. c3 {
[%emt 0:00:47]} Bb6 {[%emt 0:00:59]} 7. d4 {[%emt 0:00:48]} O-O {[%emt 0:00:53]
} 8. dxe5 {[%emt 0:00:47]} dxe5 {[%emt 0:00:46]} 9. Bd2 {[%emt 0:01:00]} e4 {
[%emt 0:00:54]} 10. Ng5 {[%emt 0:00:55]} Nd7 {[%emt 0:01:00]} 11. Qc2 {[%emt 0:
00:48]} Qxg5 {[%emt 0:00:51]} 12. h4 {[%emt 0:00:51]} Qe7 {[%emt 0:00:53]} 13.
Bxe4 {[%emt 0:01:01]} Nf6 {[%emt 0:00:47]} 14. Bg2 {[%emt 0:00:49]} Re8 {
[%emt 0:01:01]} 15. c4 {[%emt 0:00:50]} Bg4 {[%emt 0:00:49]} 16. Re1 {[%emt 0:
00:48]} Qd6 {[%emt 0:01:17]} 17. e4 {[%emt 0:01:10]} Qd4 {[%emt 0:01:04]
OnlyHungryKiwi won - game abandoned} 0-1

[Event "Fast Chess"]
[Site "ChessKid.com"]
[Date "2020.04.21"]
[Round "3"]
[White "Georgiev, Maximilian"]
[Black "Li, Tobias"]
[Result "1-0"]
[ECO "B01"]
[WhiteElo "1389"]
[BlackElo "1325"]
[Annotator "Eröffnungsfehler, Fesselung"]
[PlyCount "33"]
[EventDate "2020.??.??"]
[TimeControl "300+50"]
[WhiteClock "0:05:24"]
[BlackClock "0:05:48"]

1. e4 {[%emt 0:00:46]} d5 {[%emt 0:00:47]} 2. exd5 {[%emt 0:00:48]} Qxd5 {
[%emt 0:00:47]} 3. Nc3 {[%emt 0:00:46]} Qc6 $4 {[%emt 0:00:47]} 4. Bb5 {
[%emt 0:00:47]} Qd7 {[%emt 0:00:51]} 5. Bxd7+ {[%emt 0:00:47]} Bxd7 {[%emt 0:
00:46]} 6. Nf3 {[%emt 0:00:47]} Nf6 {[%emt 0:00:47]} 7. O-O {[%emt 0:00:46]} e6
{[%emt 0:00:46]} 8. a4 {[%emt 0:00:47]} Bb4 {[%emt 0:00:47]} 9. d3 {[%emt 0:00:
48]} O-O {[%emt 0:00:47]} 10. Bd2 {[%emt 0:00:46]} e5 {[%emt 0:00:46]} 11. Ne4
{[%emt 0:00:50]} Nxe4 {[%emt 0:00:53]} 12. dxe4 {[%emt 0:00:46]} Nc6 {[%emt 0:
00:46]} 13. Bxb4 {[%emt 0:00:47]} Nxb4 {[%emt 0:00:51]} 14. Qxd7 {[%emt 0:00:
47]} Nxc2 {[%emt 0:00:52]} 15. Rac1 {[%emt 0:00:48]} Nb4 {[%emt 0:00:48]} 16.
Qxc7 {[%emt 0:00:49]} Nc6 {[%emt 0:00:56]} 17. Qxb7 {[%emt 0:00:49]
TallSnazzyBall won by resignation} 1-0

[Event "Fast Chess"]
[Site "ChessKid.com"]
[Date "2020.04.21"]
[Round "3"]
[White "Li, Patrick"]
[Black "Gross, Lukas"]
[Result "0-1"]
[ECO "B06"]
[WhiteElo "1088"]
[BlackElo "1194"]
[Annotator "Abtausch, Springergabel"]
[PlyCount "28"]
[EventDate "2020.??.??"]
[TimeControl "300+50"]
[WhiteClock "0:04:57"]
[BlackClock "0:04:24"]

1. e4 {[%emt 0:00:46]} g6 {[%emt 0:00:48]} 2. Qf3 {[%emt 0:00:50]} Nh6 {
[%emt 0:00:48]} 3. Bc4 {[%emt 0:00:50]} Bg7 {[%emt 0:00:48]} 4. d3 {[%emt 0:00:
47]} O-O {[%emt 0:00:48]} 5. Bxh6 {[%emt 0:00:48]} Bxh6 {[%emt 0:00:47]} 6. Nc3
{[%emt 0:00:52]} Bg7 {[%emt 0:00:51]} 7. Qg3 {[%emt 0:00:53]} d6 {[%emt 0:00:
50]} 8. Nf3 {[%emt 0:00:54]} e5 {[%emt 0:00:48]} 9. Ng5 {[%emt 0:00:54]} Be6 {
[%emt 0:00:59]} 10. Bxe6 {[%emt 0:00:54]} fxe6 {[%emt 0:00:47]} 11. Qf3 $4 {
[%emt 0:00:49]} Rxf3 {[%emt 0:00:48]} 12. gxf3 {[%emt 0:01:10]} Qxg5 {[%emt 0:
00:49]} 13. Kf1 {[%emt 0:01:01]} Qd2 {[%emt 0:00:55]} 14. Rd1 {[%emt 0:00:51]}
Qxc2 {[%emt 0:00:56] RosyPopularArm won by resignation} 0-1